[Event "Titled Tuesday Blitz October 25 Late 2022"]
[White "Koutlas, Nikolaos"]
[Black "Borisova, Ekaterina"]
[WhiteFideId "25827138"]
[BlackFideId "34124184"]
[WhiteElo "2167"]
[BlackElo "2134"]
[Result "1-0"]
[Round "07"]
[TimeControl "180+1"]
[Date "2022.10.26"]
[WhiteClock "0:00:07"]
[BlackClock "0:00:03"]

1. e4 {[%clk 0:03:00]}  c6 {[%clk 0:02:57]} 2. Qh5 {[%clk 0:02:56]}  d5 {[%clk 0:02:58]} 3. exd5 {[%clk 0:02:56]}  cxd5 {[%clk 0:02:58]} 4. Nc3 {[%clk 0:02:54]}  Nf6 {[%clk 0:02:58]} 5. Qh4 {[%clk 0:02:54]}  Nc6 {[%clk 0:02:54]} 6. Nf3 {[%clk 0:02:53]}  Bf5 {[%clk 0:02:53]} 7. Bb5 {[%clk 0:02:51]}  a6 {[%clk 0:02:51]} 8. Nd4 {[%clk 0:02:45]}  Bd7 {[%clk 0:02:47]} 9. Nxc6 {[%clk 0:02:41]}  bxc6 {[%clk 0:02:45]} 10. Ba4 {[%clk 0:02:41]}  e5 {[%clk 0:02:42]} 11. O-O {[%clk 0:02:38]}  Bd6 {[%clk 0:02:42]} 12. d4 {[%clk 0:02:36]}  O-O {[%clk 0:02:31]} 13. Bg5 {[%clk 0:02:33]}  h6 {[%clk 0:02:30]} 14. Bxf6 {[%clk 0:02:23]}  Qxf6 {[%clk 0:02:30]} 15. Qxf6 {[%clk 0:02:22]}  gxf6 {[%clk 0:02:30]} 16. Ne2 {[%clk 0:02:21]}  Rab8 {[%clk 0:02:23]} 17. b3 {[%clk 0:02:18]}  Rfd8 {[%clk 0:02:18]} 18. Rad1 {[%clk 0:02:16]}  Rbc8 {[%clk 0:02:00]} 19. c4 {[%clk 0:02:11]}  e4 {[%clk 0:01:55]} 20. Nc3 {[%clk 0:02:02]}  Be6 {[%clk 0:01:54]} 21. c5 {[%clk 0:01:53]}  Be7 {[%clk 0:01:39]} 22. f3 {[%clk 0:01:52]}  f5 {[%clk 0:01:39]} 23. Kf2 {[%clk 0:01:44]}  Rc7 {[%clk 0:01:14]} 24. Ne2 {[%clk 0:01:42]}  Bg5 {[%clk 0:01:09]} 25. f4 {[%clk 0:01:33]}  Bf6 {[%clk 0:01:08]} 26. Ke3 {[%clk 0:01:24]}  Rb8 {[%clk 0:01:08]} 27. a3 {[%clk 0:01:13]}  a5 {[%clk 0:01:08]} 28. Nc3 {[%clk 0:01:11]}  Bc8 {[%clk 0:01:05]} 29. Rd2 {[%clk 0:01:07]}  Ba6 {[%clk 0:01:03]} 30. Re1 {[%clk 0:01:04]}  Kh7 {[%clk 0:01:00]} 31. Kf2 {[%clk 0:00:58]}  h5 {[%clk 0:00:59]} 32. Nd1 {[%clk 0:00:58]}  Bb5 {[%clk 0:00:52]} 33. Ne3 {[%clk 0:00:57]}  Kg6 {[%clk 0:00:51]} 34. h3 {[%clk 0:00:54]}  Bxa4 {[%clk 0:00:50]} 35. bxa4 {[%clk 0:00:54]}  Rb3 {[%clk 0:00:49]} 36. Rg1 {[%clk 0:00:54]}  Rcb7 {[%clk 0:00:46]} 37. g4 {[%clk 0:00:53]}  Rb2 {[%clk 0:00:29]} 38. gxh5+ {[%clk 0:00:46]}  Kxh5 {[%clk 0:00:19]} 39. Ke2 {[%clk 0:00:44]}  Rxd2+ {[%clk 0:00:15]} 40. Kxd2 {[%clk 0:00:45]}  Bxd4 {[%clk 0:00:14]} 41. Rg5+ {[%clk 0:00:44]}  Kh4 {[%clk 0:00:14]} 42. Nxf5+ {[%clk 0:00:45]}  Kxh3 {[%clk 0:00:13]} 43. Nxd4 {[%clk 0:00:45]}  Rb2+ {[%clk 0:00:13]} 44. Kc3 {[%clk 0:00:45]}  Ra2 {[%clk 0:00:11]} 45. Nxc6 {[%clk 0:00:45]}  Rxa3+ {[%clk 0:00:11]} 46. Kd4 {[%clk 0:00:45]}  Rd3+ {[%clk 0:00:12]} 47. Ke5 {[%clk 0:00:44]}  e3 {[%clk 0:00:13]} 48. Nd4 {[%clk 0:00:41]}  f6+ {[%clk 0:00:09]} 49. Kxf6 {[%clk 0:00:41]}  Rxd4 {[%clk 0:00:09]} 50. Re5 {[%clk 0:00:39]}  Re4 {[%clk 0:00:09]} 51. c6 {[%clk 0:00:39]}  e2 {[%clk 0:00:08]} 52. c7 {[%clk 0:00:40]}  e1=Q {[%clk 0:00:07]} 53. c8=Q+ {[%clk 0:00:40]}  Kg2 {[%clk 0:00:07]} 54. Rg5+ {[%clk 0:00:33]}  Kf2 {[%clk 0:00:05]} 55. Qc5+ {[%clk 0:00:29]}  d4 {[%clk 0:00:03]} 56. f5 {[%clk 0:00:24]}  Qe3 {[%clk 0:00:02]} 57. Rh5 {[%clk 0:00:20]}  d3 {[%clk 0:00:02]} 58. Qc7 {[%clk 0:00:18]}  Qd4+ {[%clk 0:00:02]} 59. Kg6 {[%clk 0:00:17]}  Rg4+ {[%clk 0:00:02]} 60. Kh7 {[%clk 0:00:16]}  Qd5 {[%clk 0:00:01]} 61. Rh2+ {[%clk 0:00:15]}  Rg2 {[%clk 0:00:01]} 62. Qf4+ {[%clk 0:00:14]}  Qf3 {[%clk 0:00:01]} 63. Rxg2+ {[%clk 0:00:13]}  Kxg2 {[%clk 0:00:01]} 64. Qxf3+ {[%clk 0:00:11]}  Kxf3 {[%clk 0:00:02]} 65. f6 {[%clk 0:00:12]}  d2 {[%clk 0:00:03]} 66. f7 {[%clk 0:00:13]}  d1=Q {[%clk 0:00:04]} 67. f8=Q+ {[%clk 0:00:14]}  Ke2 {[%clk 0:00:05]} 68. Qe7+ {[%clk 0:00:10]}  Kd2 {[%clk 0:00:05]} 69. Qd8+ {[%clk 0:00:11]}  Kc1 {[%clk 0:00:05]} 70. Qxa5 {[%clk 0:00:11]}  Qc2+ {[%clk 0:00:05]} 71. Kg7 {[%clk 0:00:11]}  Qb2+ {[%clk 0:00:04]} 72. Kf7 {[%clk 0:00:10]}  Qf2+ {[%clk 0:00:04]} 73. Ke6 {[%clk 0:00:09]}  Qe3+ {[%clk 0:00:04]} 74. Kd6 {[%clk 0:00:08]}  Qd4+ {[%clk 0:00:04]} 75. Kc6 {[%clk 0:00:08]}  Qe4+ {[%clk 0:00:04]} 76. Kb6 {[%clk 0:00:07]}  Qd4+ {[%clk 0:00:03]} 77. Qc5+ {[%clk 0:00:07]} 1-0


[Site "https://www.chess.com"]

[Event "Titled Tuesday Blitz October 25 Late 2022"]
[White "Machidon, Cristi"]
[Black "Svane, Rasmus"]
[WhiteFideId "13904590"]
[BlackFideId "4657101"]
[WhiteElo "2312"]
[BlackElo "2674"]
[Result "1-0"]
[Round "07"]
[TimeControl "180+1"]
[Date "2022.10.26"]
[WhiteClock "0:00:07"]
[BlackClock "0:01:06"]

1. d4 {[%clk 0:03:00]}  d5 {[%clk 0:02:58]} 2. c4 {[%clk 0:03:00]}  e6 {[%clk 0:02:58]} 3. Nf3 {[%clk 0:02:59]}  a6 {[%clk 0:02:58]} 4. cxd5 {[%clk 0:02:58]}  exd5 {[%clk 0:02:58]} 5. Nc3 {[%clk 0:02:57]}  Nf6 {[%clk 0:02:58]} 6. Bg5 {[%clk 0:02:57]}  Be6 {[%clk 0:02:59]} 7. g3 {[%clk 0:02:56]}  Nbd7 {[%clk 0:02:58]} 8. Bg2 {[%clk 0:02:56]}  Bd6 {[%clk 0:02:59]} 9. O-O {[%clk 0:02:56]}  O-O {[%clk 0:02:59]} 10. Rc1 {[%clk 0:02:55]}  c6 {[%clk 0:02:59]} 11. Na4 {[%clk 0:02:52]}  Re8 {[%clk 0:02:59]} 12. a3 {[%clk 0:02:49]}  a5 {[%clk 0:02:57]} 13. Ne1 {[%clk 0:02:46]}  h6 {[%clk 0:02:56]} 14. Bxf6 {[%clk 0:02:44]}  Nxf6 {[%clk 0:02:57]} 15. Nc5 {[%clk 0:02:43]}  Bc8 {[%clk 0:02:53]} 16. Ned3 {[%clk 0:02:41]}  Qe7 {[%clk 0:02:51]} 17. e3 {[%clk 0:02:40]}  Bf5 {[%clk 0:02:48]} 18. Qb3 {[%clk 0:02:32]}  Reb8 {[%clk 0:02:41]} 19. Rfd1 {[%clk 0:02:25]}  h5 {[%clk 0:02:38]} 20. Qc3 {[%clk 0:01:18]}  h4 {[%clk 0:02:36]} 21. Qe1 {[%clk 0:01:13]}  h3 {[%clk 0:02:33]} 22. Bf3 {[%clk 0:01:11]}  g6 {[%clk 0:02:28]} 23. Qf1 {[%clk 0:01:05]}  Kg7 {[%clk 0:02:27]} 24. Re1 {[%clk 0:01:01]}  Ne4 {[%clk 0:02:27]} 25. Qe2 {[%clk 0:00:39]}  Re8 {[%clk 0:02:19]} 26. Bg4 {[%clk 0:00:39]}  Qg5 {[%clk 0:02:05]} 27. Bxf5 {[%clk 0:00:38]}  Qxf5 {[%clk 0:02:06]} 28. Nxb7 {[%clk 0:00:36]}  Bb8 {[%clk 0:01:44]} 29. Nbc5 {[%clk 0:00:32]}  Ng5 {[%clk 0:01:44]} 30. f4 {[%clk 0:00:28]}  Ne4 {[%clk 0:01:43]} 31. Nxe4 {[%clk 0:00:27]}  Qxe4 {[%clk 0:01:40]} 32. Rxc6 {[%clk 0:00:23]}  Ra7 {[%clk 0:01:39]} 33. Qf1 {[%clk 0:00:22]}  Rae7 {[%clk 0:01:36]} 34. Nf2 {[%clk 0:00:21]}  Qf3 {[%clk 0:01:20]} 35. Nxh3 {[%clk 0:00:20]}  Qh5 {[%clk 0:01:20]} 36. Rc3 {[%clk 0:00:17]}  Ba7 {[%clk 0:01:20]} 37. Rd3 {[%clk 0:00:16]}  Rb7 {[%clk 0:01:16]} 38. b3 {[%clk 0:00:15]}  Reb8 {[%clk 0:01:17]} 39. Rb1 {[%clk 0:00:11]}  Rc8 {[%clk 0:01:17]} 40. Nf2 {[%clk 0:00:11]}  Rbc7 {[%clk 0:01:17]} 41. Qd1 {[%clk 0:00:10]}  Qf5 {[%clk 0:01:17]} 42. Kg2 {[%clk 0:00:08]}  Rc2 {[%clk 0:01:17]} 43. Rd2 {[%clk 0:00:07]}  R2c3 {[%clk 0:01:14]} 44. Re2 {[%clk 0:00:05]}  Bb8 {[%clk 0:01:11]} 45. Rbb2 {[%clk 0:00:05]}  Bd6 {[%clk 0:01:11]} 46. Qb1 {[%clk 0:00:05]}  Qe6 {[%clk 0:01:10]} 47. b4 {[%clk 0:00:06]}  Rxa3 {[%clk 0:01:09]} 48. b5 {[%clk 0:00:05]}  Bb4 {[%clk 0:01:08]} 49. e4 {[%clk 0:00:04]}  dxe4 {[%clk 0:01:09]} 50. Qxe4 {[%clk 0:00:05]}  Qxe4+ {[%clk 0:00:59]} 51. Nxe4 {[%clk 0:00:06]}  Rd3 {[%clk 0:00:59]} 52. b6 {[%clk 0:00:05]}  Rxd4 {[%clk 0:00:57]} 53. Kf3 {[%clk 0:00:03]}  Rb8 {[%clk 0:00:58]} 54. Rec2 {[%clk 0:00:03]}  Rxb6 {[%clk 0:00:58]} 55. Rc7 {[%clk 0:00:03]}  Re6 {[%clk 0:00:48]} 56. Ng5 {[%clk 0:00:03]}  Re7 {[%clk 0:00:49]} 57. Rxe7 {[%clk 0:00:02]}  Rd3+ {[%clk 0:00:49]} 58. Re3 {[%clk 0:00:01]}  Rd1 {[%clk 0:00:50]} 59. Ree2 {[%clk 0:00:01]}  Rf1+ {[%clk 0:00:51]} 60. Rf2 {[%clk 0:00:02]}  Rc1 {[%clk 0:00:52]} 61. Rbe2 {[%clk 0:00:02]}  Rc3+ {[%clk 0:00:52]} 62. Re3 {[%clk 0:00:03]}  Bc5 {[%clk 0:00:53]} 63. Rxc3 {[%clk 0:00:02]}  Bxf2 {[%clk 0:00:54]} 64. Rc4 {[%clk 0:00:03]}  a4 {[%clk 0:00:55]} 65. Rxa4 {[%clk 0:00:03]}  Bd4 {[%clk 0:00:56]} 66. Ne4 {[%clk 0:00:04]}  Bf6 {[%clk 0:00:57]} 67. Nc3 {[%clk 0:00:04]}  Be7 {[%clk 0:00:58]} 68. Ne2 {[%clk 0:00:04]}  Bf6 {[%clk 0:00:58]} 69. Rc4 {[%clk 0:00:05]}  g5 {[%clk 0:00:58]} 70. g4 {[%clk 0:00:06]}  gxf4 {[%clk 0:00:58]} 71. Nxf4 {[%clk 0:00:07]}  Bg5 {[%clk 0:00:59]} 72. Nh5+ {[%clk 0:00:07]}  Kg6 {[%clk 0:01:00]} 73. Rc6+ {[%clk 0:00:08]}  f6 {[%clk 0:01:00]} 74. Ke4 {[%clk 0:00:08]}  Bh4 {[%clk 0:01:01]} 75. Nxf6 {[%clk 0:00:08]}  Bg5 {[%clk 0:01:02]} 76. Nh5+ {[%clk 0:00:07]}  Kf7 {[%clk 0:01:02]} 77. Kf5 {[%clk 0:00:07]}  Bf6 {[%clk 0:01:03]} 78. Rxf6+ {[%clk 0:00:08]}  Ke8 {[%clk 0:01:03]} 79. g5 {[%clk 0:00:07]}  Kd7 {[%clk 0:01:04]} 80. Ke5 {[%clk 0:00:07]}  Kd8 {[%clk 0:01:05]} 81. Kd6 {[%clk 0:00:07]}  Ke8 {[%clk 0:01:06]} 82. Rf5 {[%clk 0:00:07]}  Kd8 {[%clk 0:01:06]} 83. Rf8# {[%clk 0:00:07]} 1-0


[Site "https://www.chess.com"]

[Event "Titled Tuesday Blitz October 25 Late 2022"]
[White "Maksimovic, Bojan"]
[Black "Bayo Milagro, Alvaro"]
[WhiteFideId "14408120"]
[BlackFideId "22275240"]
[WhiteElo "2447"]
[BlackElo "2270"]
[Result "1-0"]
[Round "07"]
[TimeControl "180+1"]
[Date "2022.10.26"]
[WhiteClock "0:01:50"]
[BlackClock "0:01:38"]

1. e4 {[%clk 0:03:00]}  e5 {[%clk 0:02:58]} 2. Nf3 {[%clk 0:03:01]}  Nc6 {[%clk 0:02:59]} 3. Bb5 {[%clk 0:03:01]}  a6 {[%clk 0:02:59]} 4. Ba4 {[%clk 0:03:01]}  Nf6 {[%clk 0:02:57]} 5. O-O {[%clk 0:03:01]}  Bc5 {[%clk 0:02:58]} 6. c3 {[%clk 0:03:01]}  b5 {[%clk 0:02:58]} 7. Bb3 {[%clk 0:03:00]}  d6 {[%clk 0:02:56]} 8. d4 {[%clk 0:03:00]}  Bb6 {[%clk 0:02:57]} 9. Be3 {[%clk 0:03:00]}  O-O {[%clk 0:02:55]} 10. Nbd2 {[%clk 0:03:00]}  h6 {[%clk 0:02:45]} 11. h3 {[%clk 0:03:01]}  Re8 {[%clk 0:02:41]} 12. Re1 {[%clk 0:03:01]}  Bb7 {[%clk 0:02:36]} 13. d5 {[%clk 0:03:01]}  Ne7 {[%clk 0:02:36]} 14. Bxb6 {[%clk 0:03:01]}  cxb6 {[%clk 0:02:36]} 15. Bc2 {[%clk 0:03:02]}  Ng6 {[%clk 0:02:33]} 16. Bd3 {[%clk 0:03:02]}  Bc8 {[%clk 0:02:29]} 17. Bf1 {[%clk 0:03:01]}  Bd7 {[%clk 0:02:27]} 18. Rc1 {[%clk 0:02:54]}  Nf4 {[%clk 0:02:21]} 19. Kh2 {[%clk 0:02:52]}  Qc8 {[%clk 0:02:19]} 20. Ng1 {[%clk 0:02:45]}  g5 {[%clk 0:02:18]} 21. g3 {[%clk 0:02:42]}  Ng6 {[%clk 0:02:18]} 22. Be2 {[%clk 0:02:40]}  Kg7 {[%clk 0:02:17]} 23. Bh5 {[%clk 0:02:30]}  Nxh5 {[%clk 0:01:59]} 24. Qxh5 {[%clk 0:02:30]}  g4 {[%clk 0:02:00]} 25. Nf1 {[%clk 0:02:03]}  Rf8 {[%clk 0:01:50]} 26. Ne3 {[%clk 0:01:59]}  f5 {[%clk 0:01:50]} 27. exf5 {[%clk 0:01:58]}  Bxf5 {[%clk 0:01:49]} 28. hxg4 {[%clk 0:01:50]}  Be4 {[%clk 0:01:38]} 29. f3 {[%clk 0:01:50]} 1-0


[Site "https://www.chess.com"]

[Event "Titled Tuesday Blitz October 25 Late 2022"]
[White "Manukian, Artak"]
[Black "Stanisz, Patryk"]
[WhiteFideId "13301373"]
[BlackFideId "1123106"]
[WhiteElo "2497"]
[BlackElo "2069"]
[Result "1-0"]
[Round "07"]
[TimeControl "180+1"]
[Date "2022.10.26"]
[WhiteClock "0:00:34"]
[BlackClock "0:00:03"]

1. e4 {[%clk 0:03:00]}  c5 {[%clk 0:02:59]} 2. Nf3 {[%clk 0:03:00]}  Nc6 {[%clk 0:02:59]} 3. c3 {[%clk 0:03:00]}  Nf6 {[%clk 0:02:59]} 4. e5 {[%clk 0:03:00]}  Nd5 {[%clk 0:02:59]} 5. d4 {[%clk 0:03:01]}  cxd4 {[%clk 0:03:00]} 6. cxd4 {[%clk 0:03:02]}  d6 {[%clk 0:03:00]} 7. Nc3 {[%clk 0:03:03]}  Nxc3 {[%clk 0:02:59]} 8. bxc3 {[%clk 0:03:04]}  d5 {[%clk 0:03:00]} 9. Bd3 {[%clk 0:02:58]}  Bg4 {[%clk 0:02:59]} 10. h3 {[%clk 0:02:53]}  Bxf3 {[%clk 0:02:54]} 11. Qxf3 {[%clk 0:02:54]}  e6 {[%clk 0:02:55]} 12. Rb1 {[%clk 0:02:46]}  Rb8 {[%clk 0:02:52]} 13. O-O {[%clk 0:02:27]}  Be7 {[%clk 0:02:52]} 14. Qh5 {[%clk 0:02:26]}  g6 {[%clk 0:02:47]} 15. Qh6 {[%clk 0:02:23]}  Bf8 {[%clk 0:02:45]} 16. Qf4 {[%clk 0:02:21]}  Be7 {[%clk 0:02:42]} 17. Qh6 {[%clk 0:01:48]}  Bf8 {[%clk 0:02:41]} 18. Qd2 {[%clk 0:01:48]}  Be7 {[%clk 0:02:39]} 19. f4 {[%clk 0:01:42]}  O-O {[%clk 0:02:32]} 20. g4 {[%clk 0:01:39]}  Kh8 {[%clk 0:02:14]} 21. f5 {[%clk 0:01:35]}  gxf5 {[%clk 0:02:14]} 22. gxf5 {[%clk 0:01:35]}  Rg8+ {[%clk 0:02:15]} 23. Kh2 {[%clk 0:01:32]}  Bg5 {[%clk 0:02:15]} 24. Qc2 {[%clk 0:01:28]}  Bxc1 {[%clk 0:02:14]} 25. Qxc1 {[%clk 0:01:18]}  Qh4 {[%clk 0:02:14]} 26. Qe3 {[%clk 0:01:14]}  Rg7 {[%clk 0:01:44]} 27. f6 {[%clk 0:01:08]}  Rg5 {[%clk 0:01:42]} 28. Rg1 {[%clk 0:01:02]}  Rxg1 {[%clk 0:00:23]} 29. Rxg1 {[%clk 0:01:03]}  Rg8 {[%clk 0:00:22]} 30. Rxg8+ {[%clk 0:00:55]}  Kxg8 {[%clk 0:00:22]} 31. Qg1+ {[%clk 0:00:56]}  Kf8 {[%clk 0:00:16]} 32. Qg7+ {[%clk 0:00:55]}  Ke8 {[%clk 0:00:15]} 33. Qg8+ {[%clk 0:00:55]}  Kd7 {[%clk 0:00:16]} 34. Qxf7+ {[%clk 0:00:48]}  Kd8 {[%clk 0:00:11]} 35. Qg8+ {[%clk 0:00:44]}  Kc7 {[%clk 0:00:10]} 36. Qxh7+ {[%clk 0:00:44]}  Qxh7 {[%clk 0:00:09]} 37. Bxh7 {[%clk 0:00:45]}  Kd8 {[%clk 0:00:07]} 38. Bg6 {[%clk 0:00:44]}  b5 {[%clk 0:00:05]} 39. h4 {[%clk 0:00:45]}  b4 {[%clk 0:00:05]} 40. cxb4 {[%clk 0:00:45]}  Nxd4 {[%clk 0:00:05]} 41. Kg3 {[%clk 0:00:38]}  Ne2+ {[%clk 0:00:05]} 42. Kg4 {[%clk 0:00:35]}  d4 {[%clk 0:00:03]} 43. h5 {[%clk 0:00:34]} 1-0


[Site "https://www.chess.com"]

[Event "Titled Tuesday Blitz October 25 Late 2022"]
[White "Martinez Alcantara, Jose Eduardo"]
[Black "Kollars, Dmitrij"]
[WhiteFideId "3805662"]
[BlackFideId "12909572"]
[WhiteElo "2703"]
[BlackElo "2584"]
[Result "1-0"]
[Round "07"]
[TimeControl "180+1"]
[Date "2022.10.26"]
[WhiteClock "0:00:36"]
[BlackClock "0:00:02"]

1. e4 {[%clk 0:03:00]}  e5 {[%clk 0:02:59]} 2. Nf3 {[%clk 0:03:00]}  Nc6 {[%clk 0:03:00]} 3. Bb5 {[%clk 0:03:01]}  a6 {[%clk 0:03:00]} 4. Ba4 {[%clk 0:03:02]}  Nf6 {[%clk 0:03:01]} 5. O-O {[%clk 0:02:59]}  Be7 {[%clk 0:03:00]} 6. Re1 {[%clk 0:02:59]}  b5 {[%clk 0:02:59]} 7. Bb3 {[%clk 0:03:00]}  d6 {[%clk 0:03:00]} 8. c3 {[%clk 0:03:00]}  O-O {[%clk 0:03:01]} 9. h3 {[%clk 0:03:01]}  Bb7 {[%clk 0:03:00]} 10. d4 {[%clk 0:02:59]}  Re8 {[%clk 0:03:00]} 11. Ng5 {[%clk 0:02:59]}  Rf8 {[%clk 0:03:00]} 12. Nf3 {[%clk 0:03:00]}  Re8 {[%clk 0:02:59]} 13. Nbd2 {[%clk 0:02:58]}  h6 {[%clk 0:02:46]} 14. Nf1 {[%clk 0:02:56]}  Bf8 {[%clk 0:02:41]} 15. Ng3 {[%clk 0:02:56]}  exd4 {[%clk 0:02:31]} 16. cxd4 {[%clk 0:02:57]}  Na5 {[%clk 0:02:30]} 17. Bc2 {[%clk 0:02:56]}  c5 {[%clk 0:02:31]} 18. d5 {[%clk 0:02:57]}  g6 {[%clk 0:02:27]} 19. b3 {[%clk 0:02:57]}  Bg7 {[%clk 0:02:25]} 20. Rb1 {[%clk 0:02:56]}  Bc8 {[%clk 0:02:21]} 21. Bf4 {[%clk 0:02:53]}  c4 {[%clk 0:02:19]} 22. b4 {[%clk 0:02:50]}  Nb7 {[%clk 0:02:19]} 23. a4 {[%clk 0:02:50]}  Nd7 {[%clk 0:02:08]} 24. Nd4 {[%clk 0:02:45]}  Qb6 {[%clk 0:02:06]} 25. Be3 {[%clk 0:02:44]}  Qd8 {[%clk 0:01:39]} 26. axb5 {[%clk 0:02:41]}  axb5 {[%clk 0:01:40]} 27. Nxb5 {[%clk 0:02:39]}  Ne5 {[%clk 0:01:40]} 28. Nd4 {[%clk 0:02:25]}  Bd7 {[%clk 0:01:39]} 29. f4 {[%clk 0:01:51]}  Qh4 {[%clk 0:01:25]} 30. Nge2 {[%clk 0:01:36]}  Nd3 {[%clk 0:01:11]} 31. Bxd3 {[%clk 0:01:36]}  cxd3 {[%clk 0:01:12]} 32. Qxd3 {[%clk 0:01:36]}  Ra2 {[%clk 0:01:12]} 33. Nf3 {[%clk 0:01:27]}  Qe7 {[%clk 0:01:08]} 34. Bd4 {[%clk 0:01:14]}  Qxe4 {[%clk 0:01:03]} 35. Qxe4 {[%clk 0:01:15]}  Rxe4 {[%clk 0:01:03]} 36. Bxg7 {[%clk 0:01:16]}  Kxg7 {[%clk 0:01:04]} 37. Nc3 {[%clk 0:01:15]}  Rxe1+ {[%clk 0:01:04]} 38. Rxe1 {[%clk 0:01:16]}  Rc2 {[%clk 0:00:58]} 39. Re7 {[%clk 0:01:14]}  Bf5 {[%clk 0:00:38]} 40. Nb5 {[%clk 0:01:08]}  Bc8 {[%clk 0:00:19]} 41. Nfd4 {[%clk 0:01:00]}  Kf8 {[%clk 0:00:17]} 42. Rxf7+ {[%clk 0:00:55]}  Kxf7 {[%clk 0:00:18]} 43. Nxc2 {[%clk 0:00:55]}  Bf5 {[%clk 0:00:17]} 44. Ncd4 {[%clk 0:00:54]}  Be4 {[%clk 0:00:17]} 45. Nc3 {[%clk 0:00:55]}  Bd3 {[%clk 0:00:17]} 46. Kf2 {[%clk 0:00:55]}  Kf6 {[%clk 0:00:16]} 47. g4 {[%clk 0:00:51]}  g5 {[%clk 0:00:16]} 48. Kg3 {[%clk 0:00:49]}  Bf1 {[%clk 0:00:14]} 49. Ne4+ {[%clk 0:00:49]}  Kg6 {[%clk 0:00:14]} 50. f5+ {[%clk 0:00:49]}  Kf7 {[%clk 0:00:14]} 51. h4 {[%clk 0:00:45]}  gxh4+ {[%clk 0:00:14]} 52. Kxh4 {[%clk 0:00:44]}  Bg2 {[%clk 0:00:14]} 53. Nc3 {[%clk 0:00:44]}  Kf6 {[%clk 0:00:14]} 54. Kg3 {[%clk 0:00:43]}  Bf1 {[%clk 0:00:12]} 55. Kf4 {[%clk 0:00:43]}  Bc4 {[%clk 0:00:10]} 56. Ne6 {[%clk 0:00:42]}  Ke7 {[%clk 0:00:09]} 57. g5 {[%clk 0:00:42]}  hxg5+ {[%clk 0:00:09]} 58. Kxg5 {[%clk 0:00:43]}  Kf7 {[%clk 0:00:06]} 59. Nf4 {[%clk 0:00:39]}  Nd8 {[%clk 0:00:04]} 60. Ne4 {[%clk 0:00:39]}  Ke7 {[%clk 0:00:03]} 61. Kg6 {[%clk 0:00:39]}  Bb3 {[%clk 0:00:02]} 62. Kg7 {[%clk 0:00:38]}  Bc2 {[%clk 0:00:01]} 63. f6+ {[%clk 0:00:38]}  Kd7 {[%clk 0:00:02]} 64. Ng5 {[%clk 0:00:36]} 1-0


[Site "https://www.chess.com"]

[Event "Titled Tuesday Blitz October 25 Late 2022"]
[White "Melikyan, Gnel"]
[Black "Cortes Orihuela, Javier"]
[WhiteFideId "54109990"]
[BlackFideId "3414329"]
[WhiteElo "2138"]
[BlackElo "2080"]
[Result "1-0"]
[Round "07"]
[TimeControl "180+1"]
[Date "2022.10.26"]
[WhiteClock "0:01:07"]
[BlackClock "0:00:01"]

1. h3 {[%clk 0:02:58]}  d5 {[%clk 0:02:59]} 2. Nf3 {[%clk 0:02:57]}  c5 {[%clk 0:02:59]} 3. b3 {[%clk 0:02:56]}  f6 {[%clk 0:02:58]} 4. Bb2 {[%clk 0:02:57]}  e5 {[%clk 0:02:59]} 5. e3 {[%clk 0:02:57]}  Nc6 {[%clk 0:02:57]} 6. Be2 {[%clk 0:02:57]}  Bd6 {[%clk 0:02:56]} 7. d3 {[%clk 0:02:56]}  Nge7 {[%clk 0:02:57]} 8. Nbd2 {[%clk 0:02:56]}  Be6 {[%clk 0:02:55]} 9. c4 {[%clk 0:02:56]}  d4 {[%clk 0:02:53]} 10. exd4 {[%clk 0:02:56]}  cxd4 {[%clk 0:02:50]} 11. a3 {[%clk 0:02:55]}  a5 {[%clk 0:02:49]} 12. Qc2 {[%clk 0:02:53]}  b6 {[%clk 0:02:45]} 13. Ne4 {[%clk 0:02:51]}  f5 {[%clk 0:02:40]} 14. Nxd6+ {[%clk 0:02:50]}  Qxd6 {[%clk 0:02:40]} 15. Ng5 {[%clk 0:02:51]}  Bg8 {[%clk 0:02:35]} 16. g4 {[%clk 0:02:39]}  h6 {[%clk 0:02:31]} 17. Nf3 {[%clk 0:02:39]}  fxg4 {[%clk 0:02:23]} 18. hxg4 {[%clk 0:02:39]}  Ng6 {[%clk 0:02:23]} 19. Nd2 {[%clk 0:02:34]}  Nf4 {[%clk 0:02:10]} 20. Bf3 {[%clk 0:02:34]}  Bh7 {[%clk 0:02:06]} 21. Ne4 {[%clk 0:02:31]}  Bxe4 {[%clk 0:01:48]} 22. Bxe4 {[%clk 0:02:26]}  Rc8 {[%clk 0:01:41]} 23. Bc1 {[%clk 0:02:24]}  Rf8 {[%clk 0:01:30]} 24. f3 {[%clk 0:02:23]}  Nd8 {[%clk 0:01:20]} 25. b4 {[%clk 0:02:15]}  axb4 {[%clk 0:01:19]} 26. axb4 {[%clk 0:02:16]}  Qxb4+ {[%clk 0:01:17]} 27. Bd2 {[%clk 0:02:16]}  Qd6 {[%clk 0:01:17]} 28. Qa4+ {[%clk 0:02:16]}  Kf7 {[%clk 0:01:10]} 29. Bb4 {[%clk 0:02:15]}  Rc5 {[%clk 0:00:55]} 30. Qa7+ {[%clk 0:02:04]}  Kg8 {[%clk 0:00:52]} 31. Kd2 {[%clk 0:02:00]}  Nde6 {[%clk 0:00:25]} 32. Qb7 {[%clk 0:01:56]}  Qd8 {[%clk 0:00:16]} 33. Ra7 {[%clk 0:01:49]}  Rc7 {[%clk 0:00:13]} 34. Qxb6 {[%clk 0:01:48]}  Rxa7 {[%clk 0:00:13]} 35. Qxa7 {[%clk 0:01:47]}  Rf7 {[%clk 0:00:12]} 36. Qa6 {[%clk 0:01:43]}  Ng5 {[%clk 0:00:11]} 37. Bc6 {[%clk 0:01:29]}  Qf6 {[%clk 0:00:06]} 38. Ra1 {[%clk 0:01:16]}  Nfe6 {[%clk 0:00:01]} 39. Qa8+ {[%clk 0:01:07]}  Kh7 {[%clk 0:00:01]} 40. Be4+ {[%clk 0:01:07]} 1-0


[Site "https://www.chess.com"]